bitfinex/quotes_BTCUSD_20250225
["timestamp","ask_amount","ask_price","bid_price","bid_amount"]
[1740468360925,3.61224404,90782.0,90781.0,0.00038125]
[1740468361315,4.14634404,90782.0,90781.0,0.00038125]
[1740468361555,4.14634404,90782.0,90680.0,0.25169263]
[1740468361709,0.5341,90781.0,90680.0,0.25169263]
[1740468361911,0.5341,90781.0,90712.0,0.35294961]
[1740468362173,0.53055325,90780.0,90732.0,0.35294961]
[1740468362470,3.61243846,90782.0,90732.0,0.35294961]
[1740468362471,1.06465325,90779.0,90732.0,0.35294961]
[1740468362675,1.06465325,90779.0,90721.0,0.3356134]
[1740468362960,1.06465325,90779.0,90745.0,0.0736485]
[1740468363393,1.06465325,90779.0,90745.0,0.05640108]
[1740468363586,1.06465325,90778.0,90732.0,0.30943844]
[1740468363948,1.06465325,90778.0,90742.0,0.33720682]
[1740468364172,1.06465325,90777.0,90732.0,0.30943844]
[1740468364348,1.06465325,90777.0,90711.0,0.35294961]
[1740468364547,0.30921242,90749.0,90617.0,0.35294961]
[1740468364870,1.06465325,90748.0,90725.0,0.34120004]
[1740468365043,1.06465325,90747.0,90713.0,0.35267153]
[1740468365245,1.06465325,90746.0,90713.0,0.35267153]
[1740468365447,1.06465325,90745.0,90723.0,0.35294961]
[1740468365643,1.06465325,90745.0,90713.0,0.35267153]
[1740468365897,1.06465325,90745.0,90726.0,0.35294961]
[1740468366212,3.61224404,90782.0,90723.0,0.0004326]
[1740468366491,0.5341,90781.0,90723.0,0.0004326]
[1740468366873,0.5341,90781.0,90617.0,0.35294961]
[1740468367078,0.53453172,90781.0,90617.0,0.35294961]
[1740468367434,0.00043172,90781.0,90672.0,0.35294961]
[1740468367611,0.5341,90780.0,90693.0,0.35294961]
[1740468367761,0.5341,90780.0,90683.0,0.35294961]
[1740468367968,0.24681261,90780.0,90662.0,0.35211713]
[1740468368196,0.24681261,90779.0,90672.0,0.35294961]
[1740468368516,0.24681261,90778.0,90672.0,0.35294961]
[1740468368764,0.24681261,90777.0,90662.0,0.35211713]
[1740468368909,0.05577676,90781.0,90633.0,0.0008497]
[1740468368910,0.30227867,90776.0,90633.0,0.0008497]
[1740468369105,0.05542458,90774.0,90633.0,0.0008497]
[1740468369308,0.05506859,90772.0,90633.0,0.0008497]
[1740468369509,0.24681261,90771.0,90633.0,0.00057162]
[1740468369710,0.05537661,90770.0,90658.0,0.35294961]
[1740468369931,0.07583172,90781.0,90658.0,0.35294961]
[1740468369932,0.0553858,90768.0,90658.0,0.35294961]
[1740468370120,0.0553858,90768.0,90670.0,0.19090283]
[1740468370301,0.0550775,90780.0,90638.0,0.35294961]
[1740468370499,0.05561495,90778.0,90633.0,0.00057162]
[1740468370698,0.05561495,90778.0,90634.0,0.35294961]
[1740468370901,0.05561495,90778.0,90646.0,0.35294961]
[1740468371152,0.5341,90777.0,90656.0,0.35294961]
[1740468371326,0.05546606,90776.0,90666.0,0.35294961]
[1740468371523,0.0550775,90780.0,90676.0,0.35294961]
[1740468371728,0.0550775,90780.0,90255.0,0.1436257]
[1740468371936,0.05561495,90778.0,90603.0,0.35294961]
[1740468372131,0.05546606,90776.0,90638.0,0.35294961]
[1740468372461,0.05542458,90774.0,90638.0,0.35294961]
[1740468372655,0.05506859,90772.0,90614.0,0.35294961]
[1740468372857,0.05537661,90770.0,90614.0,0.35294961]
[1740468372999,0.07,90700.0,90614.0,0.35294961]
[1740468373207,0.05502718,90698.0,90527.0,0.35294961]
[1740468373404,0.05519659,90699.0,90527.0,0.35294961]
[1740468373826,0.0473,90698.0,90527.0,0.35294961]
[1740468374028,0.05596788,90697.0,90489.0,0.35294961]
[1740468374235,0.05596788,90697.0,90616.0,0.05043242]
[1740468374484,0.0752,90696.0,90638.0,0.0008488]
[1740468374828,0.0752,90696.0,90616.0,0.05043242]
[1740468374829,0.05599356,90695.0,90616.0,0.05043242]
[1740468375133,0.05546691,90674.0,90616.0,0.05043242]
[1740468375249,0.05555537,90672.0,90616.0,0.05043242]
[1740468375450,0.05563577,90670.0,90616.0,0.05043242]
[1740468375702,0.05545512,90668.0,90616.0,0.05043242]
[1740468376104,0.05599356,90695.0,90616.0,0.05043242]
[1740468376308,0.05567575,90693.0,90624.0,0.35294961]
[1740468376506,0.05534243,90691.0,90624.0,0.35294961]
[1740468376881,0.05534243,90691.0,90616.0,0.05043242]
[1740468377109,0.05500867,90689.0,90632.0,0.08824324]
[1740468377268,0.05587058,90687.0,90632.0,0.08824324]
[1740468377505,0.05554911,90685.0,90622.0,0.08824324]
[1740468377884,0.05583451,90683.0,90622.0,0.08824324]
[1740468378091,0.05583451,90683.0,90616.0,0.05043242]
[1740468378341,0.05581856,90681.0,90616.0,0.05043242]
[1740468378654,0.05510436,90677.0,90616.0,0.05043242]
[1740468378811,0.05563577,90670.0,90616.0,0.03623274]
[1740468379016,0.05507112,90636.0,90525.0,0.0008488]
[1740468379246,0.05566247,90634.0,90525.0,0.0008488]
[1740468379404,1.69836207,90633.0,90525.0,0.0008488]
[1740468379607,0.08824324,90620.0,90525.0,0.0008488]
[1740468379837,0.05503138,90619.0,90525.0,0.0008488]
[1740468380068,0.05613936,90600.0,90599.0,29.71013518]
[1740468380303,1.75493209,90600.0,90599.0,29.55183095]
[1740468380476,1.83173209,90600.0,90599.0,28.88265075]
[1740468380678,1.83173209,90600.0,90599.0,28.79969958]
[1740468380880,1.83173209,90600.0,90599.0,28.72610062]
[1740468381099,1.83173209,90600.0,90599.0,28.69322854]
[1740468381301,1.83173209,90600.0,90599.0,28.26973782]
[1740468381469,1.75493209,90600.0,90599.0,28.26138012]
[1740468381667,1.75493209,90600.0,90599.0,27.69446843]
[1740468381870,1.34617732,90600.0,90599.0,27.69446843]
[1740468382070,0.4484833,90623.0,90622.0,0.35314631]
[1740468382500,0.4484833,90623.0,90602.0,0.35314631]
[1740468382501,0.9825833,90623.0,90602.0,0.35314631]
[1740468382731,0.5341,90622.0,90599.0,27.69459814]
[1740468382935,0.4484833,90623.0,90599.0,27.45449252]
[1740468383142,0.35314631,90636.0,90599.0,27.4261263]
[1740468383341,0.39864631,90622.0,90599.0,27.23390146]
[1740468383556,0.39864631,90622.0,90599.0,26.31915962]
[1740468383557,0.0814,90621.0,90599.0,26.31915962]
[1740468383771,0.35314631,90600.0,90599.0,25.57349869]
[1740468383984,0.35314631,90600.0,90599.0,25.1676173]
[1740468384283,0.35314631,90600.0,90599.0,22.49093219]
[1740468384482,0.88724631,90600.0,90599.0,20.9236794]
[1740468384681,0.35314631,90600.0,90599.0,20.57490317]
[1740468384887,0.35314631,90600.0,90599.0,20.55242582]
[1740468385104,0.88724631,90600.0,90599.0,20.44298644]
[1740468385305,0.94296329,90600.0,90599.0,20.43298646]
[1740468385473,0.88724631,90600.0,90599.0,20.41577673]
[1740468385681,0.5341,90600.0,90599.0,20.41465744]
[1740468385887,0.4484833,90605.0,90599.0,20.41465744]
[1740468386127,0.1484833,90605.0,90599.0,20.41438024]
[1740468386279,0.07,90600.0,90599.0,20.13450014]
[1740468386474,0.6041,90600.0,90599.0,19.49275236]
[1740468386678,0.6041,90600.0,90599.0,19.39018866]
[1740468387071,0.6041,90600.0,90599.0,19.3747452]
[1740468387276,0.6041,90600.0,90599.0,19.3735452]
[1740468387716,0.6041,90600.0,90599.0,19.36514806]
[1740468387891,0.07,90600.0,90599.0,19.36514806]
[1740468388107,1.3564011,90600.0,90599.0,19.03932506]
[1740468388309,1.35648579,90600.0,90599.0,19.03932506]
[1740468388508,1.35648579,90600.0,90599.0,19.02842434]
[1740468388689,1.35648579,90600.0,90599.0,19.10722434]
[1740468388898,1.35648579,90600.0,90599.0,19.08844715]
[1740468389234,1.35648579,90600.0,90599.0,19.07820463]
[1740468389638,1.35648579,90600.0,90599.0,19.06664516]
[1740468389850,8.469e-05,90600.0,90599.0,19.06664516]
[1740468389999,0.05504242,90694.0,90599.0,19.06655252]
[1740468390200,0.0487,90718.0,90613.0,0.10892372]
[1740468390518,0.35314631,90690.0,90599.0,18.84288341]
[1740468390723,0.35314631,90690.0,90600.0,0.35314631]
[1740468390923,0.14385866,90715.0,90599.0,18.63657302]
[1740468391250,1.7291,90694.0,90599.0,18.58935087]
[1740468391446,0.35314631,90690.0,90599.0,18.58445515]
[1740468391649,1.7291,90689.0,90599.0,18.03012085]
[1740468391866,0.08825736,90683.0,90599.0,18.03012085]
[1740468392029,1.7291,90682.0,90599.0,18.02403709]
[1740468392230,1.7291,90682.0,90602.0,0.08825736]
[1740468392432,0.08825736,90704.0,90599.0,18.02403709]
[1740468392433,0.08825736,90660.0,90599.0,18.02403709]
[1740468392642,1.7291,90659.0,90599.0,18.02403709]
[1740468393044,1.7291,90659.0,90599.0,17.97408149]
[1740468393244,0.08825736,90704.0,90599.0,17.97408149]
[1740468393245,1.7291,90658.0,90599.0,17.97408149]
[1740468393451,1.7291,90657.0,90599.0,17.97408149]
[1740468393717,0.08824324,90715.0,90605.0,0.08825736]
[1740468393718,1.7291,90656.0,90605.0,0.08825736]
[1740468393923,1.7291,90655.0,90606.0,0.1221]
[1740468394052,1.7291,90654.0,90607.0,0.0478]
[1740468394259,0.05530745,90718.0,90628.0,0.08825736]
[1740468394460,0.05561542,90715.0,90628.0,0.08170384]
[1740468394662,1.4729,90694.0,90628.0,0.08170384]
[1740468394870,1.4729,90694.0,90618.0,0.1266]
[1740468395272,0.05512619,90657.0,90618.0,0.12632192]
[1740468395469,0.05541846,90655.0,90618.0,0.12632192]
[1740468395669,0.05541846,90655.0,90618.0,0.10390192]
[1740468396233,0.05541846,90655.0,90618.0,0.0761794]
[1740468396440,0.05561415,90653.0,90600.0,0.08825736]
[1740468396642,1.4729,90652.0,90618.0,0.00012971]
[1740468396818,0.05529374,90650.0,90622.0,0.08812181]
[1740468397037,0.05525681,90648.0,90618.0,1e-08]
[1740468397289,0.05568251,90646.0,90618.0,1e-08]
[1740468397512,0.05568251,90646.0,90599.0,17.60221661]
[1740468397730,0.0558254,90644.0,90599.0,17.60206811]
[1740468397858,0.0558254,90644.0,90599.0,17.57689532]
[1740468398060,0.05561055,90642.0,90599.0,17.52258061]
[1740468398288,0.05547578,90640.0,90599.0,17.52258061]
[1740468398488,0.05532622,90638.0,90599.0,17.52258061]
[1740468398749,0.05539584,90627.0,90599.0,17.52258061]
[1740468398883,0.08825736,90608.0,90599.0,17.49573967]
[1740468399082,1.37555593,90607.0,90599.0,17.4658593]
[1740468399311,0.0496,90606.0,90599.0,17.4658593]
[1740468399507,1.37555593,90605.0,90599.0,16.85887331]
[1740468399710,1.37555593,90605.0,90599.0,16.76125079]
[1740468400210,0.02,90603.0,90599.0,16.74777556]
[1740468400438,0.0779,90600.0,90599.0,16.69777556]
[1740468400642,1.47345593,90600.0,90599.0,15.72069121]
[1740468400838,1.47345593,90600.0,90599.0,15.33748665]
[1740468400839,1.45345593,90600.0,90599.0,15.33748665]
[1740468401042,1.45345593,90600.0,90599.0,15.22701692]
[1740468401240,1.47345593,90600.0,90599.0,15.18437593]
[1740468401555,1.45345593,90600.0,90599.0,15.08060464]
[1740468401859,1.39555593,90600.0,90599.0,14.96884573]
[1740468402271,1.39555593,90600.0,90599.0,14.91389308]
[1740468402481,1.39555593,90600.0,90599.0,14.64354514]
[1740468402482,1.41555593,90600.0,90599.0,14.64354514]
[1740468402685,1.41555593,90600.0,90599.0,14.18854223]
[1740468402833,1.41555593,90600.0,90599.0,14.17927798]
[1740468403233,1.37555593,90600.0,90599.0,12.38877128]
[1740468403578,1.39555593,90600.0,90599.0,11.38868153]
[1740468403810,1.39555593,90600.0,90599.0,11.38788153]
[1740468404022,1.37555593,90600.0,90599.0,10.79806785]
[1740468404191,1.39555593,90600.0,90599.0,10.23832162]
[1740468404398,1.39555593,90600.0,90599.0,10.18361119]
[1740468404629,1.41555593,90600.0,90599.0,10.14998119]
[1740468404967,1.39555593,90600.0,90599.0,10.14998119]
[1740468405152,1.39555593,90600.0,90599.0,10.08360817]
[1740468405153,1.41555593,90600.0,90599.0,10.08360817]
[1740468405355,1.39555593,90600.0,90599.0,10.08360817]
[1740468405626,1.41555593,90600.0,90599.0,7.66746233]
[1740468405826,1.33518671,90600.0,90599.0,7.41789801]
[1740468406031,1.37518671,90600.0,90599.0,7.40659561]
[1740468406267,1.37518671,90600.0,90599.0,7.26291975]
[1740468406472,1.33518671,90600.0,90599.0,7.11460973]
[1740468406678,1.39518671,90600.0,90599.0,3.69238724]
[1740468407005,1.39518671,90600.0,90599.0,1.87049867]
[1740468407176,1.39518671,90600.0,90599.0,0.6737128]
[1740468407382,1.39518671,90600.0,90587.0,0.02368869]
[1740468407383,1.31578671,90600.0,90587.0,0.02368869]
[1740468407535,1.31578671,90600.0,90587.0,0.02411935]
[1740468407745,1.31518671,90599.0,90587.0,0.02411935]
[1740468407943,1.31518671,90598.0,90587.0,0.02411935]
[1740468408168,1.31518671,90597.0,90587.0,0.02411935]
[1740468408533,1.31518671,90596.0,90587.0,0.02411935]
[1740468408742,0.1064,90595.0,90587.0,0.02411935]
[1740468408965,0.0006,90600.0,90545.0,0.1411157]
[1740468409166,0.05545569,90586.0,90545.0,0.1411157]
[1740468410016,0.05545569,90586.0,90546.0,0.35320283]
[1740468410225,0.05545569,90586.0,90577.0,0.35320283]
[1740468410426,0.00331982,90587.0,90580.0,0.35320283]
[1740468410630,0.00331982,90587.0,90566.0,30.07176184]
[1740468410910,0.00331982,90587.0,90566.0,30.04036948]
[1740468411373,0.00331982,90587.0,90567.0,0.35320283]
[1740468411502,0.00331982,90587.0,90566.0,30.00756903]
[1740468411701,1.31518671,90586.0,90566.0,30.00756903]
[1740468411923,0.35320283,90570.0,90566.0,29.99216647]
[1740468412131,1.31518671,90569.0,90566.0,29.96958371]
[1740468412332,1.31518671,90569.0,90566.0,29.64453375]
[1740468412533,1.31518671,90569.0,90566.0,29.30856893]
[1740468412717,1.31518671,90569.0,90566.0,29.05904182]
[1740468412918,0.35320283,90570.0,90566.0,28.81144923]
[1740468412919,0.05574533,90567.0,90566.0,28.81144923]
[1740468413119,1.31518671,90567.0,90566.0,28.50929989]
[1740468413327,1.31561726,90567.0,90566.0,28.01682236]
[1740468413524,1.31561726,90567.0,90566.0,27.37768931]
[1740468413784,1.31561726,90567.0,90566.0,27.2668557]
[1740468414086,1.31269119,90567.0,90566.0,27.26070757]
[1740468414322,1.31269119,90567.0,90566.0,27.20507918]
[1740468414997,1.31269119,90567.0,90566.0,27.14487651]
[1740468415276,1.31269119,90567.0,90566.0,26.15454121]
[1740468415445,1.31269119,90567.0,90566.0,25.30257884]
[1740468415746,1.31269119,90567.0,90566.0,25.30248618]
[1740468415884,1.31269119,90567.0,90566.0,24.75409973]
[1740468416088,1.31269119,90567.0,90566.0,24.72277197]
[1740468416329,1.31269119,90567.0,90566.0,24.68214591]
[1740468416529,1.31269119,90567.0,90566.0,24.63762459]
[1740468416729,1.31269119,90567.0,90566.0,24.63745826]
[1740468416930,1.31269119,90567.0,90566.0,24.53512013]
[1740468417143,1.31269119,90567.0,90566.0,23.86273013]
[1740468417349,1.31329119,90567.0,90566.0,22.35062894]
[1740468417672,1.31329119,90567.0,90566.0,21.68094181]
[1740468417845,1.31329119,90567.0,90566.0,19.85805006]
[1740468418051,1.31329119,90567.0,90566.0,17.90290839]
[1740468418244,1.31329119,90567.0,90566.0,17.23331471]
[1740468418464,1.31329119,90567.0,90566.0,17.08546778]
[1740468418623,1.31329119,90567.0,90566.0,16.7034379]
[1740468418829,1.31329119,90567.0,90566.0,16.24105064]
[1740468419044,1.31329119,90567.0,90566.0,14.71775]
[1740468419231,1.31329119,90567.0,90566.0,14.45128797]
[1740468419440,1.31329119,90567.0,90566.0,13.77241121]
[1740468419627,0.77919119,90567.0,90566.0,12.53124759]
[1740468419821,0.00103055,90567.0,90566.0,12.00855434]
[1740468420047,0.00103055,90567.0,90566.0,11.91361379]
[1740468420245,0.00103055,90567.0,90566.0,11.89726736]
[1740468420600,0.00103055,90567.0,90566.0,11.61272167]
[1740468420795,0.00103055,90567.0,90566.0,11.43325452]
[1740468420934,0.00103055,90567.0,90566.0,10.97062047]
[1740468421138,0.00103055,90567.0,90566.0,10.78566754]
[1740468421392,0.00103055,90567.0,90566.0,10.69662449]
[1740468421591,0.05573479,90651.0,90566.0,10.62758781]
[1740468421801,0.05629451,90651.0,90566.0,10.49554692]
[1740468422003,0.05629451,90651.0,90566.0,10.26164689]
[1740468422201,0.05552447,90649.0,90566.0,10.21154151]
[1740468422464,0.05524149,90649.0,90566.0,9.82390684]
[1740468422645,0.05580121,90649.0,90566.0,9.67738364]
[1740468422846,0.35320283,90640.0,90566.0,9.18845437]
[1740468423027,0.05594926,90639.0,90566.0,8.9387847]
[1740468423206,0.27743651,90639.0,90566.0,8.7376622]
[1740468423418,0.27743651,90639.0,90566.0,8.07268293]
[1740468423622,0.27743651,90639.0,90566.0,7.79513466]
[1740468423623,0.05544117,90634.0,90566.0,7.79513466]
[1740468423856,0.0551847,90633.0,90566.0,7.21597203]
[1740468424000,0.27667195,90633.0,90566.0,7.08374911]
[1740468424198,0.27667195,90633.0,90566.0,7.02896613]
[1740468424441,0.27667195,90633.0,90566.0,6.85521852]
[1740468424764,0.27667195,90633.0,90566.0,6.6801516]
[1740468424933,0.05578044,90599.0,90566.0,6.62220196]
[1740468425096,0.27652044,90599.0,90566.0,6.4850837]
[1740468425297,0.27652044,90599.0,90566.0,5.11469558]
[1740468425538,0.05585392,90597.0,90566.0,5.06437098]
[1740468425777,0.05585392,90597.0,90566.0,4.94357124]
[1740468425778,0.05565523,90595.0,90566.0,4.94357124]
[1740468425937,0.05576609,90593.0,90566.0,4.92484441]
[1740468426287,0.05571892,90591.0,90566.0,4.92468938]
[1740468426557,0.05571892,90591.0,90569.0,0.20534175]
[1740468426800,0.05554998,90589.0,90580.0,0.35240283]
[1740468427120,0.22074,90597.0,90580.0,6e-08]
[1740468427121,0.05581533,90587.0,90580.0,6e-08]
[1740468427320,1.31226064,90586.0,90567.0,0.35320283]
[1740468427590,0.05559293,90584.0,90571.0,0.35320283]
[1740468427748,0.05559293,90584.0,90566.0,4.71618979]
[1740468427946,1.31226064,90583.0,90567.0,0.34575842]
[1740468428298,0.05514997,90581.0,90572.0,0.35320283]
[1740468428437,1.31226064,90580.0,90572.0,0.2822971]
[1740468428632,1.31226064,90579.0,90572.0,0.2822971]
[1740468428818,0.41404162,90578.0,90572.0,0.19901188]
[1740468429175,1.30865064,90577.0,90566.0,4.01680874]
[1740468429534,1.30727485,90576.0,90569.0,0.35320283]
[1740468429734,1.30727485,90575.0,90566.0,4.00958474]
[1740468429933,1.30727485,90575.0,90558.0,0.0005]
[1740468430065,0.06090228,90566.0,90558.0,0.0005]
[1740468430267,1.30727485,90565.0,90558.0,0.0005]
[1740468430487,1.52809485,90565.0,90558.0,0.0005]
[1740468431248,0.22082,90565.0,90558.0,0.0005]
[1740468433052,0.22082,90565.0,90545.0,0.1411157]
[1740468433209,0.5341,90564.0,90545.0,0.1411157]
[1740468433409,0.75492,90564.0,90545.0,0.1411157]
[1740468433637,0.5341,90563.0,90545.0,0.1411157]
[1740468433828,0.75492,90563.0,90545.0,0.1411157]
[1740468434490,0.5341,90562.0,90545.0,0.1411157]
[1740468434644,0.75492,90562.0,90545.0,0.1411157]
[1740468434848,0.22082,90562.0,90545.0,0.1411157]
[1740468436304,0.86941901,90561.0,90545.0,0.1411157]
[1740468436549,1.4012,90560.0,90545.0,0.1411157]
[1740468436754,1.7291,90559.0,90545.0,0.1411157]
[1740468436932,1.94992,90559.0,90545.0,0.1411157]
[1740468437338,1.7291,90558.0,90545.0,0.1411157]
[1740468437495,1.7291,90557.0,90545.0,0.1411157]
[1740468437698,1.94992,90557.0,90545.0,0.1411157]
[1740468437899,1.7291,90556.0,90545.0,0.1411157]
[1740468438103,1.94992,90556.0,90545.0,0.1411157]
[1740468438517,1.4012,90555.0,90545.0,0.1411157]
[1740468438715,1.62202,90555.0,90545.0,0.1411157]
[1740468439139,1.7291,90554.0,90545.0,0.1411157]
[1740468439347,1.4012,90553.0,90545.0,0.1411157]
[1740468439530,1.62202,90553.0,90545.0,0.1411157]
[1740468439905,1.7291,90552.0,90545.0,0.1411157]
[1740468440039,1.94992,90552.0,90545.0,0.1411157]
[1740468440248,1.11091927,90551.0,90545.0,0.1411157]
[1740468440446,1.33173927,90551.0,90545.0,0.1411157]
[1740468440678,1.43881927,90550.0,90545.0,0.1411157]
[1740468440882,1.65963927,90550.0,90545.0,0.1411157]
[1740468441079,1.64067217,90550.0,90545.0,0.1411157]
[1740468441936,0.48617641,90549.0,90545.0,0.1369645]
[1740468442088,0.81407641,90548.0,90545.0,0.1369645]
[1740468442285,1.68117641,90547.0,90545.0,0.10177775]
[1740468442465,1.68117641,90546.0,90545.0,0.10097775]
[1740468442666,1.90199641,90546.0,90545.0,0.10072904]
[1740468442911,1.90199641,90546.0,90545.0,0.09918104]
[1740468443126,1.87382373,90546.0,90545.0,0.09918104]
[1740468443331,1.87358649,90546.0,90514.0,0.35331397]
[1740468443537,1.65276649,90545.0,90514.0,0.35331397]
[1740468443742,1.92919066,90545.0,90503.0,0.35331397]
[1740468443973,1.92919066,90545.0,90514.0,0.35331397]
[1740468444172,1.86110821,90545.0,90528.0,0.35331397]
[1740468444334,0.05554229,90544.0,90528.0,0.35331397]
[1740468444535,0.22082,90544.0,90528.0,0.35331397]
[1740468444737,0.22082,90544.0,90514.0,0.35331397]
[1740468444945,0.22082,90544.0,90526.0,0.35331397]
[1740468445288,0.22058276,90544.0,90526.0,0.35331397]
[1740468445600,1.64028821,90543.0,90538.0,0.34034563]
[1740468445805,0.8262118,90542.0,90538.0,0.32634627]
[1740468446047,0.696412,90542.0,90538.0,0.32627807]
[1740468446249,1.09739357,90541.0,90514.0,0.35331397]
[1740468446483,1.09739357,90541.0,90526.0,0.35331397]
[1740468446609,0.5341,90540.0,90514.0,0.35331397]
[1740468446828,1.02407476,90539.0,90527.0,0.35331397]
[1740468447057,1.55817476,90538.0,90537.0,7e-08]
[1740468447256,1.55817476,90538.0,90500.0,0.507807]
[1740468447571,1.55817476,90538.0,90528.0,0.08836557]
[1740468447811,0.3279,90538.0,90528.0,0.08836557]
[1740468448010,0.862,90537.0,90528.0,0.08836557]
[1740468448555,0.862,90536.0,90515.0,0.08836557]
[1740468448753,1.55817476,90535.0,90504.0,0.08836557]
[1740468449036,0.28128039,90541.0,90531.0,0.08836557]
[1740468449347,0.5341,90540.0,90521.0,0.0001]
[1740468449563,0.05545088,90539.0,90531.0,0.08836557]
[1740468449766,0.5341,90538.0,90531.0,0.08836557]
[1740468450163,0.0728487,90534.0,90531.0,0.08836557]
[1740468450480,0.0728487,90534.0,90532.0,28.92560219]
[1740468451052,0.0728487,90534.0,90532.0,28.83723662]
[1740468451434,0.5341,90533.0,90532.0,28.83723662]
[1740468451613,0.5341,90533.0,90532.0,28.81610783]
[1740468452155,0.5341,90533.0,90532.0,27.94749169]
[1740468452468,0.4007487,90534.0,90532.0,27.93817917]
[1740468452789,0.5341,90533.0,90532.0,27.93154431]
[1740468453515,0.5341,90533.0,90532.0,27.91535979]
[1740468453716,0.5341,90533.0,90532.0,27.89767984]
[1740468453874,0.862,90533.0,90532.0,27.89767984]
[1740468455039,0.53609882,90533.0,90532.0,27.89767984]
[1740468455860,0.53609882,90533.0,90532.0,27.89620088]
[1740468456060,0.53609882,90533.0,90532.0,27.89500088]
[1740468456560,1.06996158,90533.0,90532.0,27.53613917]
[1740468456974,1.06996158,90533.0,90532.0,27.53533917]
[1740468457166,1.06996158,90533.0,90532.0,27.50971917]
[1740468457566,1.06996158,90533.0,90532.0,27.00951982]
[1740468457944,1.06996158,90533.0,90532.0,27.00801866]
[1740468458145,0.08009882,90533.0,90532.0,27.14951866]
[1740468458336,0.0553301,90560.0,90559.0,0.02]
[1740468458532,0.32766276,90722.0,90585.0,0.01993657]
[1740468458533,0.00989989,90591.0,90585.0,0.01993657]
[1740468458754,3.53831465,90586.0,90585.0,0.07727218]
[1740468458960,2.44948771,90586.0,90585.0,0.00177218]
[1740468459171,2.44948771,90586.0,90563.0,0.08836557]
[1740468459172,0.33676906,90586.0,90563.0,0.00974599]
[1740468459371,0.55413214,90633.0,90563.0,0.0095213]
[1740468459576,0.55413214,90633.0,90564.0,0.0211]
[1740468459752,0.35566191,90633.0,90569.0,0.02]
[1740468459950,0.35566191,90633.0,90567.0,0.02]
[1740468460175,0.35566191,90633.0,90632.0,0.35305257]
[1740468460374,0.84216191,90633.0,90582.0,0.3136887]
[1740468460653,0.30806191,90633.0,90613.0,0.35314792]
[1740468460860,0.5291,90632.0,90624.0,0.35333153]
[1740468461164,0.5291,90632.0,90603.0,0.35333153]
[1740468461412,0.5291,90632.0,90613.0,0.35333153]
[1740468461610,0.5291,90631.0,90623.0,0.35326422]
[1740468462071,0.30806191,90633.0,90623.0,0.35311949]
[1740468462246,0.30806191,90633.0,90623.0,0.35333153]
[1740468462453,0.00012977,90633.0,90623.0,0.35333153]
[1740468462788,0.5341,90632.0,90623.0,0.11731889]
[1740468463021,0.51193626,90663.0,90651.0,0.34447334]
[1740468463224,0.01806135,90676.0,90662.0,0.30980113]
[1740468463401,0.01125598,90690.0,90651.0,0.08867999]
[1740468463619,0.0554064,90727.0,90641.0,0.29919122]
[1740468463760,0.05588775,90766.0,90651.0,0.00043207]
[1740468463957,0.0827,90796.0,90651.0,0.00043207]
[1740468463958,0.05527114,90742.0,90651.0,0.00043207]
[1740468464159,0.04149079,90771.0,90741.0,0.35333153]
[1740468464361,0.0216998,90786.0,90768.0,0.35333153]
[1740468464584,0.01428233,90769.0,90768.0,0.27720544]
[1740468464785,0.12108563,90768.0,90743.0,0.35333153]
[1740468464987,0.12108563,90768.0,90743.0,0.12438548]
[1740468465189,0.12108563,90768.0,90763.0,0.35326564]
[1740468465394,0.0016998,90786.0,90780.0,0.35333153]
[1740468465602,0.00012969,90781.0,90780.0,0.34122508]
[1740468465750,2.03970449,90782.0,90780.0,0.34122508]
[1740468465949,0.0016998,90786.0,90780.0,0.34122508]
[1740468466197,0.00896128,90785.0,90743.0,0.12438548]
[1740468466372,0.0017004,90785.0,90743.0,0.10529619]
[1740468466572,0.01845692,90784.0,90756.0,0.35333153]
[1740468466793,0.00182985,90785.0,90756.0,0.35333153]
[1740468466794,1.17630584,90783.0,90779.0,0.35333153]
[1740468467002,0.00182985,90785.0,90779.0,0.33563357]
[1740468467230,0.5341,90784.0,90721.0,0.35317646]
[1740468467477,0.0008486,90743.0,90622.0,0.35333153]
[1740468467711,0.0008486,90743.0,90686.0,0.35326664]
[1740468467964,0.0008486,90743.0,90686.0,0.33398911]
[1740468468167,0.0008486,90743.0,90622.0,0.35333153]
[1740468468513,0.0008486,90743.0,90690.0,0.35333153]
[1740468468727,0.00097795,90743.0,90673.0,0.35333153]
[1740468468946,0.00097795,90743.0,90642.0,0.35314444]
[1740468469144,0.00097795,90743.0,90509.0,0.0008499]
[1740468469342,0.02,90634.0,90509.0,0.0008499]
[1740468469547,0.55412232,90633.0,90539.0,0.01329364]
[1740468469814,0.05517522,90631.0,90532.0,26.58440718]
[1740468470078,0.02,90617.0,90532.0,26.44693184]
[1740468470315,0.0553637,90561.0,90532.0,26.37396251]
[1740468470566,0.05565794,90559.0,90532.0,26.36700982]
[1740468470757,0.05565794,90559.0,90532.0,26.29081609]
[1740468470963,0.05565794,90559.0,90532.0,26.25273347]
[1740468471164,0.05565794,90559.0,90532.0,26.18282968]
[1740468471294,0.05565794,90559.0,90532.0,26.18275604]
[1740468471494,0.05565794,90559.0,90532.0,26.16001912]
[1740468471698,0.05526195,90557.0,90532.0,26.16001912]
[1740468471909,0.05526195,90557.0,90532.0,26.14684928]
[1740468472115,0.05582013,90555.0,90532.0,25.93385527]
[1740468472319,0.05582013,90555.0,90532.0,25.92852504]
[1740468472629,0.05591895,90553.0,90532.0,25.86773849]
[1740468472833,0.05586121,90551.0,90532.0,25.54088299]
[1740468473039,0.05541692,90549.0,90532.0,25.53710699]
[1740468473235,5.05,90548.0,90532.0,25.52836315]
[1740468473439,5.05,90548.0,90532.0,24.95998836]
[1740468473693,0.05536699,90547.0,90532.0,24.91071204]
[1740468473844,0.05588153,90545.0,90532.0,24.91071204]
[1740468474007,5.05,90544.0,90532.0,24.90317445]
[1740468474209,5.05,90544.0,90532.0,24.29458093]
[1740468474435,1.22502219,90543.0,90532.0,24.29458093]
[1740468474639,1.22502219,90543.0,90532.0,24.24050136]
[1740468474992,0.07532141,90539.0,90532.0,23.44974406]
[1740468475218,0.02,90533.0,90532.0,23.31663899]
[1740468475372,0.02,90533.0,90532.0,19.73771491]
[1740468475570,0.068,90536.0,90532.0,18.77942797]
[1740468475770,1.22502219,90535.0,90532.0,13.72922397]
[1740468476074,1.24502219,90535.0,90532.0,12.82919197]
[1740468476273,1.22502219,90535.0,90532.0,12.58629765]
[1740468476474,1.22502219,90534.0,90532.0,12.58629765]
[1740468476674,3.96042,90533.0,90532.0,12.58605765]
[1740468476900,5.18544219,90533.0,90532.0,11.97174191]
[1740468477115,5.18544219,90533.0,90532.0,11.96088674]
[1740468477317,5.18544219,90533.0,90532.0,11.94804529]
[1740468477657,5.18544219,90533.0,90532.0,11.94341644]
[1740468477992,4.28808276,90533.0,90532.0,11.94341644]
[1740468478200,4.28808276,90533.0,90532.0,11.8883821]
[1740468478201,5.13544219,90533.0,90532.0,11.8883821]
[1740468478401,5.19096498,90533.0,90532.0,11.85164235]
[1740468478603,3.27563498,90533.0,90532.0,11.85147525]